Workbook

Sheet Hinweise
A1: Hinweise:
A3: - | B3: Positionen mit 0,00€ nicht löschen, sondern bestehen lassen -> es könnte sein das diese Posten in den folgenden Jahren wieder benötigt werden und auch damit nicht in Vergessenheit gerät was es mal gab
A7: - | B7: Die Summe der fortgeschriebenen finanziellen Mittel müssen immer manuell ins Deckblatt des nächsten Haushaltsjahres eingetragen werden.
A8: - | B8: Die Auflistung der fortgeschriebenen finanziellen Mittel im Detailblatt 1 und in den einzelnen Referaten dient als Übersicht, welcher Betrag übernommen werden muss.
A10: - | B10: Somit bildet die Spalte "Übertrag ins nächste HH-Jahr" des jeweiligen Jahres das "Nachrangig verwendbares Vj..-Budget" des nächsten Jahres.
A11: - | B11: Die Spalte "Zurückführung" errechnet sich aus dem nicht verwendeten "Nachrangigen Vj..-Budget" und gilt immer für das nächste Jahr.
A15: - | B15: WICHTIG:
B16: Der Haushaltsplan des Vorjahres, welcher maßgeblich für die Zahlen des neu geplanten Haushaltsplans ist, muss nach Abschluss des ersten Quartals endgültig auf die IST-Werte angepasst werden.
B17: Daraus sollte sich der erste Nachtragshaushalt ergeben, woraus sich wiederum eine Anpassung des Semesterbeitrags für das WS ergeben könnte.
B19: Für die Ermittlung der angeordneten Vermögensänderung des StuRa werden die geplanten Einnahmen als Obergrenze zu Grunde gelegt. Als Einnahmen werden dabei die vom Deckblatt berücksichtigt.
B20: Die Einnahmen aus der Selbstverwaltung, die Zinsen und die Beitragseinnahmen der Studierenden abzüglich der Zurückführung an Studierende.
B21: Den daraus ermittelten Einnahmen werden die noch verfügbaren finanziellen Mittel entgegengestellt, sind diese größer als die geplanten Einnahmen, so ergibt sich die Vermögensänderung auf der Einnahmenseite.
B22: Für die Ermittlung der angeordneten Vermögensänderung des StuRa auf der Ausgabenseite, werden die verfügbaren finanziellen Mittel mit der Mindestreserve verglichen.
B23: Sind diese kleiner als die Mindestreserve, so bildet die Differenz den Betrag der Vermögensänderung.

Sheet Deckblatt
A1: Haushaltsplan 2022 Studierendenschaft HTW Dresden | C1: Einnahmen | F1: Ausgaben
C2: PLAN | D2: IST | E2: SALDO | F2: PLAN | G2: IST | H2: SALDO
A3: Selbstverwaltung | C3: ='Detailblatt I'!J55 -> 26100 | D3: ='Detailblatt I'!K55 -> 28 | E3: =D3-C3 -> -26072 | F3: ='Detailblatt I'!M55 -> 259076 | G3: ='Detailblatt I'!N55 -> 813.19 | H3: =(F3-G3) -> 258262.81
A4: Beitragseinnahmen der Studierenden | C4: ='Detailblatt II'!F18 -> 201900 | D4: ='Detailblatt II'!G18 -> 129807 | E4: =D4-C4 -> -72093 | F4: ='Detailblatt II'!I18 -> 0 | G4: ='Detailblatt II'!J18 -> 0 | H4: =(F4-G4) -> 0
A5: Zinsen | C5: ='Detailblatt II'!F22 -> 0 | D5: ='Detailblatt II'!G22 -> 0 | E5: 0 | F5: ='Detailblatt II'!I22 -> 0 | G5: ='Detailblatt II'!J22 -> 0 | H5: =(F5-G5) -> 0
A6: Entnahme (=Einnahme) Ansparen (=Ausgabe) | B6: von Vermögen | C6: =IF((Beitragsermittlung!B16)-('Detailblatt II'!F16+'Detailblatt II'!F17)>0,(Beitragsermittlung!B16)-('Detailblatt II'!F16+'Detailblatt II'!F17),0) -> 0 | D6: 0 | E6: 0 | F6: 224 | G6: ='Detailblatt II'!G23 -> 0 | H6: =(F6-G6) -> 224
A7: angeordnete Vermögensänderung lt. FO | C7: =Beitragsermittlung!B14 -> 0 | E7: 0 | F7: ='Detailblatt II'!I21 -> 0 | H7: =(F7-G7) -> 0
A8: Zurückführung an Studierende (StuRa) | C8: 31300 | D8: =C8 -> 31300 | E8: =D8-C8 -> 0
A10: Gesamt: | C10: =SUM(C3:C9) -> 259300 | D10: 161135 | E10: -98165 | F10: =SUM(F3:F9) -> 259300 | G10: 813.19 | H10: 258486.81
A11: Berechnung des Semesterbeitrag:
B12: Planausgaben: | C12: =F10 -> 259300 | E12: In Zeile F6 (Ansparung) manuell einzutragen: | H12: =IF(Deckblatt!C10-Deckblatt!F10>0,Deckblatt!C10-Deckblatt!F10+F6,IF(C10=F10,"Haushaltsplan ist ausgeglichen!","Haushaltsplan ist nicht ausgeglichen!")) -> Haushaltsplan ist ausgeglichen!
A13: - | B13: Planeinnahmen: | C13: =C3+C5 -> 26100
A14: - | B14: Zurückführung: | C14: =C8+C9 -> 31300
A15: - | B15: Vermögensänderung | C15: =C7 -> 0
A16: = | B16: Gesamt: | C16: =C12-C13-C14-C15-F6 -> 201676
A17: / | B17: Beitragszahlungen/Jahr: | C17: ='Detailblatt II'!D16+('Detailblatt II'!D17/6*4) -> 7533.333333
A18: = | B18: Stud./Semester: | C18: =IF((C16-'Detailblatt II'!F15)/Deckblatt!C17<0,0,(C16-'Detailblatt II'!F15)/Deckblatt!C17) -> 22.97469027 | D18: Anzusetzender Semesterbeitrag: | F18: =ROUND((C18*2),0)/2 -> 23

Sheet Beitragsermittlung
A1: Ermittlung des Beitrages in Bezug auf die angeordnete Vermögensänderung
A3: Geplante Einnahmen | B3: =Deckblatt!F10-Deckblatt!C8-Deckblatt!C9-Deckblatt!F6 -> 227776
A4: verfügbare finanzielle Mittel | B4: ='fortgeschr. Mittel+Konto'!D9 -> 117160.43
A5: Obergrenze finanzielle Mittel | B5: =IF(B3<B4,B3,B4) -> 117160.43
A7: Vorgesehene Vermögenssenkung wegen zu hoher verfügbarer finanzieller Mittel | B7: =IF(Beitragsermittlung!B4>Deckblatt!F10-Deckblatt!F6,Beitragsermittlung!B4-Beitragsermittlung!B5,0) -> 0
A8: Mindestreserve | B8: =Mindestreserve!D18 -> 101950
A9: (Verfügbare finanzielle Mittel nach Vermögensenkung) | B9: =B4-B7 -> 117160.43
A10: Untergrenze für verfügbare finanzielle Mittel durch Bemessung an der Mindestreserve wird erreicht | B10: =IF(B5<B8,B8,B5) -> 117160.43
A11: beabsichtigte Senkung der verfügbaren finanziellen Mittel | B11: =B4-B10 -> 0
A13: Obergrenze für verpflichtende Vermögenssenkung entgegen der (negativen) Erhebung von Beiträgen | B13: =IF(Beitragsermittlung!B11>(Deckblatt!F10-Deckblatt!F6-(Deckblatt!C3+Deckblatt!C5+Deckblatt!C8+Deckblatt!C9+'Detailblatt II'!F15)),Deckblatt!F10-Deckblatt!F6-(Deckblatt!C3+Deckblatt!C5+Deckblatt!C8+Deckblatt!C9+'Detailblatt II'!F15),Beitragsermittlung!B11) -> 0
A14: Vermögenssenkung wegen übermäßig verfügbarer finanzieller Mittel ohne negativem Semesterbeitrag | B14: =IF(B13<0,0,B13) -> 0
A16: restlich zu vereinnahmender Semesterbeitrag ab dem nächsten Sommersemester | B16: =(Deckblatt!F3+Deckblatt!F5+Deckblatt!F7+Deckblatt!F4)-(Deckblatt!C13+Deckblatt!C14+Deckblatt!C15+'Detailblatt II'!F15) -> 173076

Sheet fortgeschr. Mittel+Konto
A1: Fortgeschriebene finanzielle Mittel + Bankkontostand | C1: Jahr - | D1: ='Detailblatt I'!F1 -> 2022
F2: Nr. | G2: voraussichtliche Ausgaben | I2: Saldo
B3: Position | C3: erstellt am: | D3: Saldo | F3: 1. | G3: Personal (Nov.+Dez. inkl. 13.Gehalt, ACON, Finanzamt) | I3: 0
B4: Bank-/Kassenbestand bei Haushaltsplanerstellung | D4: =1994.99+283079.76+60000+1676.21 -> 346750.96
A5: - | B5: abzgl. voraussichtliche Ausgaben | D5: =I25*(-1) -> -111170.53 | F5: 2. | G5: Finanzbeschlüsse aktuell noch nicht bezahlt in Summe | I5: 0
A6: - | B6: nachrangig verwendbares Vorjahresbudget | D6: ='Detailblatt I'!P55*(-1)-'Detailblatt I'!Q55*(-1) -> -58520
A7: - | B7: Zurückführung an Studierende gesamt | D7: =SUM(Deckblatt!C8:C9)*-1 -> -31300 | F7: 3. | G7: Schulungen/Konferenzen (KoSe) | I7: 0
A8: - | B8: Beitragseinnahmen anteilig WS 21/22 für 2022 | D8: ='Detailblatt II'!F15*-1 -> -28600 | F8: 4. | G8: voraussichtliche AE | I8: 0
A9: = | B9: verfügbare finanzielle Mittel | D9: =D4+D5+D6+D7+D8 -> 117160.43 | F9: 5. | G9: offene Härtefallanträge | I9: 0
F10: 6. | G10: Software-Abos (AGENDA etc.) | I10: 0
F11: 7. | G11: Kosten für Wartung (Drucker etc.) | I11: 0
F12: 8. | G12: Kontoführung | I12: 0
F13: 9. | G13: Kino in der HTW & Co. | I13: 0
F14: 10. | G14: Kosten für Wahlen | I14: 0
F15: 11. | G15: Kaffeebestellung(en) | I15: 0
F16: 12. | G16: Ersatz- & Neuanschaffung | I16: 0
F17: 13. | G17: wahrscheinlich noch zu beschließende Finanzanträge | I17: 0
F19: 14. | G19: Semesterticket Konto 1591 & 1592 | I19: 83853
F21: 15. | G21: Konto 1704 | I21: 7725.52
F22: 16. | G22: Konto 1450 (-) | I22: 0
F23: 17. | G23: Kaution 1734 | I23: 204
F24: 18. | G24: Nothilfefonds saldiert | I24: =66079.01-46691 -> 19388.01
F25: = | G25: Gesamtsumme: | I25: =SUM(I3:I24) -> 111170.53

Sheet Mindestreserve
A1: Mindestreserve | D1: Jahr - | E1: ='Detailblatt I'!F1 -> 2022 | F1: Berechnungsgrundlage ist die aktuelle Finanzordnung (FO)
G2: - alle vertraglich festgeschriebenen Vereinbarungen müssen durch die Kapitalreserve abgedeckt sein
A3: vertragliche Vereinbarungen | D3: Planausgaben
A4: Studentinnen- und Studentenrat
A5: Lohnkosten (Detailblatt I - Zelle M7) | D5: ='Detailblatt I'!M7 -> 150000
A6: Korrektur für "SHK"-Stellen | D6: -50000
A7: …aktuell ohne Belegung…
A8: …aktuell ohne Belegung… | D8: ------
A9: Referat Finanzen
A10: Kontoführungsgebühren | D10: =Finanzen!G3 -> 500
A11: Buchhaltungssoftware AGENDA | D11: =Finanzen!G4 -> 1000
A12: …aktuell ohne Belegung… | D12: ------
A13: Referat Selbstverwaltung & Organisation
A14: Domains | D14: ='Studentische Verwaltung'!F4 -> 50
A15: laufende Kosten (Druck, Wartung) | D15: ='Studentische Verwaltung'!F16 -> 400
A16: …aktuell ohne Belegung… | D16: ------
A17: …aktuell ohne Belegung… | D17: ------
A18: Gesamt: | D18: =SUM(D5:E17) -> 101950

Sheet Detailblatt I
A1: Detailblatt I | E1: Jahr - | F1: 2022 | J1: Einnahmen | M1: Ausgaben | P1: nachrangig verwendbares Vj. Budget | Q1: davon verwendet | R1: Zuführung "Fortgeschr. finanz. Mittel" | S1: Übertrag ins nächste HH-Jahr
J2: PLAN | K2: IST | L2: SALDO | M2: PLAN | N2: IST | O2: SALDO
A3: Selbstverwaltung der Studentinnen- und Studentenschaft HTW Dresden
A4: Studentinnen- und Studentenrat
A5: Sachkontonr.
A6: 2749 | B6: Angestellte | C6: AAG | K6: 0 | L6: =K6 -> 0
A7: 4120 | C7: Gehälter | M7: 150000 | N7: 0 | O7: =M7-SUM(N7:N12)+L6 -> 149512.07
A8: 4121 | C8: Lohnsteuer | N8: 0
A9: 4170 | C9: Vermögenswirksame Leistungen | N9: 0
A10: 4130 | C10: gesetzl. sozial. Aufw. | N10: 487.93
A11: 4138 | C11: Beitrag BG | N11: 0
A12: 4956 | C12: Lohnbüro | N12: 0
A13: 4110 | B13: (AE) Aufwandsentschädigungen | M13: 20000 | N13: 0 | O13: =M13-N13 -> 20000
A14: 4640 | B14: Kaffee & Verpflegung | M14: 1200 | N14: 0 | O14: 1200
A15: 4670 | B15: Allgemeine Reisekosten (die keiner Veranstaltung zugeordnet sind) | M15: 500 | N15: 0 | O15: 500
A16: 4909 | B16: Vorstand der Geschäftsführung | M16: 0 | N16: 0 | O16: 0
A17: 4930 | B17: Büro- und Verbrauchsmaterialien | M17: 100 | N17: 0 | O17: 100 | P17: 40 | Q17: =IF(O17<0,IF(P17>0,IF((O17*(-1))>P17,P17,O17*(-1)),0),0) -> 0 | R17: =IF(OR(Q17>P17,O17+P17<0),makro1(),ROUNDDOWN(P17-Q17,-1)) -> 40 | S17: =IF(O17>0,ROUNDDOWN(O17,-1),0) -> 100
A18: 4943 | B18: Teilnahme Konferenzen | M18: 1000 | N18: 0 | O18: 1000 | P18: 340 | Q18: =IF(O18<0,IF(P18>0,IF((O18*(-1))>P18,P18,O18*(-1)),0),0) -> 0 | R18: =IF(OR(Q18>P18,O18+P18<0),makro1(),ROUNDDOWN(P18-Q18,-1)) -> 340 | S18: =IF(O18>0,ROUNDDOWN(O18,-1),0) -> 1000
A19: 4944 | B19: Teilnahme Schulungen | M19: 250 | N19: 0 | O19: 250 | P19: 250 | Q19: 0 | R19: =IF(OR(Q19>P19,O19+P19<0),makro1(),ROUNDDOWN(P19-Q19,-1)) -> 250 | S19: =IF(O19>0,ROUNDDOWN(O19,-1),0) -> 250
A20: 4945 | B20: Durchführung Konferenzen | J20: 2000 | K20: =Konferenzen!D6 -> 0 | L20: =K20-J20 -> -2000 | M20: 2500 | N20: =Konferenzen!G6 -> 0 | O20: 2500 | P20: =Konferenzen!I6 -> 500 | Q20: =Konferenzen!J6 -> 0 | R20: =Konferenzen!K6 -> 500 | S20: =Konferenzen!L6 -> 500
A21: 4950 | B21: Rechts- und Beratungskosten | M21: 9000 | N21: 0 | O21: 9000 | P21: 6000 | Q21: =IF(O21<0,IF(P21>0,IF((O21*(-1))>P21,P21,O21*(-1)),0),0) -> 0 | R21: =IF(OR(Q21>P21,O21+P21<0),makro1(),ROUNDDOWN(P21-Q21,-1)) -> 6000 | S21: =IF(O21>0,ROUNDDOWN(O21,-1),0) -> 9000
A22: 4989 | B22: Ersatz- und Neuanschaffung | M22: 3000 | N22: 0 | O22: 3000 | P22: 1590 | Q22: 0 | R22: =IF(OR(Q22>P22,O22+P22<0),makro1(),ROUNDDOWN(P22-Q22,-1)) -> 1590 | S22: =IF(O22>0,ROUNDDOWN(O22,-1),0) -> 3000
A23: Zwischensumme: | J23: =SUM(J6:J22) -> 2000 | K23: 0 | L23: -2000 | M23: 187550 | N23: 487.93 | O23: 187062.07 | P23: =SUM(P17:P22) -> 8720 | Q23: =SUM(Q17:Q22) -> 0 | R23: =SUM(R17:R22) -> 8720 | S23: =SUM(S17:S22) -> 13850
A24: Referate
A25: 4960 | B25: Finanzen | J25: =Finanzen!D6 -> 0 | K25: =Finanzen!E6 -> 0 | L25: =K25-J25 -> 0 | M25: =Finanzen!G6 -> 1750 | N25: =Finanzen!H6 -> 325.26 | O25: =M25-N25 -> 1424.74
A26: 4961 | B26: Hochschulpolitik | J26: =Hochschulpolitik!C8 -> 0 | K26: =Hochschulpolitik!D8 -> 0 | L26: =K26-J26 -> 0 | M26: =Hochschulpolitik!F8 -> 450 | N26: =Hochschulpolitik!G8 -> 0 | O26: 450 | P26: =Hochschulpolitik!I8 -> 700 | Q26: =Hochschulpolitik!J8 -> 0 | R26: =Hochschulpolitik!K8 -> 700 | S26: =Hochschulpolitik!L8 -> 450
A27: 4962 | B27: Internationales | J27: =Internationales!C6 -> 0 | K27: =Internationales!D6 -> 0 | L27: 0 | M27: =Internationales!F6 -> 350 | N27: =Internationales!G6 -> 0 | O27: 350 | P27: =Internationales!I6 -> 50 | Q27: =Internationales!J6 -> 0 | R27: =Internationales!K6 -> 50 | S27: =Internationales!L6 -> 100
A28: 4963 | B28: Kultur | J28: =Kultur!C14 -> 17400 | K28: =Kultur!D14 -> 0 | L28: -17400 | M28: =Kultur!F14 -> 19550 | N28: =Kultur!G14 -> 0 | O28: 19550 | P28: =Kultur!I14 -> 10160 | Q28: =Kultur!J14 -> 0 | R28: =Kultur!K14 -> 10160 | S28: =Kultur!L14 -> 19300
A29: 4964 | B29: Öffentlichkeitsarbeit | J29: =Öffentlichkeitsarbeit!C9 -> 500 | K29: =Öffentlichkeitsarbeit!D9 -> 28 | L29: -472 | M29: =Öffentlichkeitsarbeit!F9 -> 5800 | N29: =Öffentlichkeitsarbeit!G9 -> 0 | O29: 5800 | P29: =Öffentlichkeitsarbeit!I9 -> 2580 | Q29: =Öffentlichkeitsarbeit!J9 -> 0 | R29: =Öffentlichkeitsarbeit!K9 -> 2580 | S29: =Öffentlichkeitsarbeit!L9 -> 5550
A30: 4965 | B30: Qualitätsmanagement | J30: =Qualitätsmanagement!C6 -> 0 | K30: =Qualitätsmanagement!D6 -> 0 | L30: 0 | M30: =Qualitätsmanagement!F6 -> 750 | N30: =Qualitätsmanagement!G6 -> 0 | O30: 750 | P30: =Qualitätsmanagement!I6 -> 730 | Q30: =Qualitätsmanagement!J6 -> 0 | R30: =Qualitätsmanagement!K6 -> 730 | S30: =Qualitätsmanagement!L6 -> 500
A31: 4966 | B31: Soziales | J31: =Soziales!C7 -> 0 | K31: =Soziales!D7 -> 0 | L31: 0 | M31: =Soziales!F7 -> 600 | N31: =Soziales!G7 -> 0 | O31: 600 | P31: =Soziales!I7 -> 550 | Q31: =Soziales!J7 -> 0 | R31: =Soziales!K7 -> 550 | S31: =Soziales!L7 -> 350
A32: 4967 | B32: Sport | J32: =Sport!C12 -> 2200 | K32: =Sport!D12 -> 0 | L32: -2200 | M32: =Sport!F12 -> 4250 | N32: =Sport!G12 -> 0 | O32: 4250 | P32: =Sport!I12 -> 700 | Q32: =Sport!J12 -> 0 | R32: =Sport!K12 -> 700 | S32: =Sport!L12 -> 3200
A33: 4968 | B33: Studium | J33: =Studium!C8 -> 0 | K33: =Studium!D8 -> 0 | L33: 0 | M33: =Studium!F8 -> 1500 | N33: =Studium!G8 -> 0 | O33: 1500 | P33: =Studium!I8 -> 0 | Q33: =Studium!J8 -> 0 | R33: =Studium!K8 -> 0 | S33: =Studium!L8 -> 1250
A34: 4969 | B34: Studentische Selbstverwaltung & Organisation | J34: ='Studentische Verwaltung'!C17 -> 4000 | K34: ='Studentische Verwaltung'!D17 -> 0 | L34: -4000 | M34: ='Studentische Verwaltung'!F17 -> 15226 | N34: ='Studentische Verwaltung'!G17 -> 0 | O34: 15226 | P34: ='Studentische Verwaltung'!I17 -> 28150 | Q34: ='Studentische Verwaltung'!J17 -> 0 | R34: ='Studentische Verwaltung'!K17 -> 28150 | S34: ='Studentische Verwaltung'!L17 -> 15220
A35: 4946 | B35: Personal | J35: =Personal!C21 -> 0 | K35: ='Studentische Verwaltung'!D18 -> 0 | L35: =K35-J35 -> 0 | M35: =Personal!F21 -> 5200 | N35: ='Studentische Verwaltung'!G18 -> 0 | O35: 5200 | P35: =Personal!I21 -> 4310 | Q35: ='Studentische Verwaltung'!J18 -> 0 | R35: =Personal!K21 -> 4310 | S35: =Personal!L21 -> 4950
A36: ---- | B36: Ausschüsse des Studentinnen- und Studentenrates | J36: 0 | K36: 0 | L36: 0 | M36: 0 | N36: 0 | O36: 0
A37: ---- | B37: weitere Vertretungen | J37: 0 | K37: 0 | L37: 0 | M37: 0 | N37: 0 | O37: 0
A38: Zwischensumme: | J38: =SUM(J25:J37) -> 24100 | K38: =SUM(K25:K37) -> 28 | L38: =SUM(L25:L37) -> -24072 | M38: =SUM(M25:M37) -> 55426 | N38: =SUM(N25:N37) -> 325.26 | O38: 55100.74 | P38: =SUM(P26:P35) -> 47930 | Q38: =SUM(Q26:Q35) -> 0 | R38: =SUM(R26:R35) -> 47930 | S38: =SUM(S26:S35) -> 50870
A39: Ausschüsse der Studentinnen- und Studentenschaft
A40: ---- | B40: weitere Ausschüsse der Studentinnen- und Studentenschaft | M40: 0 | N40: 0 | O40: =M40-N40 -> 0
A41: ---- | B41: Wahlausschuss der Studentinnen- und Studentenschaft | M41: 0 | N41: 0 | O41: =M41-N41 -> 0
A42: 4941 | B42: (HFA) Härtefallausschuss der Studentinnen- & Studentenschaft | M42: 5000 | N42: 0 | O42: =M42-N42 -> 5000
A43: Zwischensumme: | M43: =SUM(M40:M42) -> 5000 | N43: =SUM(N40:N42) -> 0 | O43: =SUM(O40:O42) -> 5000
A45: Anzahl der Studierenden im: | F45: WiSe | G45: 22/23 | H45: SoSe | I45: 2022
A46: gesamt: | F46: ='Detailblatt II'!D17 -> 4700 | H46: ='Detailblatt II'!D16 -> 4400
A47: #4942 Absicherung Teilnahme BuFaTas lt. Finanzordnung: | I47: 0.5 | M47: =ROUND(($F$46+$H$46)*$I$47,-2) -> 4600 | N47: 0 | O47: =M47-N47 -> 4600 | P47: 1870 | Q47: =IF(O47<0,IF(P47>0,IF((O47*(-1))>P47,P47,O47*(-1)),0),0) -> 0 | R47: =IF(OR(Q47>P47,O47+P47<0),makro1(),ROUNDDOWN(P47-Q47,-1)) -> 1870 | S47: =IF(O47>0,ROUNDDOWN(O47,-1),0) -> 4600
A48: Zwischensumme: | M48: =SUM(M47:M47) -> 4600 | N48: =SUM(N47:N47) -> 0 | O48: =SUM(O47:O47) -> 4600 | P48: =SUM(P47) -> 1870 | Q48: =SUM(Q47) -> 0 | R48: =SUM(R47:R47) -> 1870 | S48: =SUM(S47) -> 4600
A49: Vertretungen der Studentinnen und Studenten
A50: ---- | B50: Vertretungen der Studentinnen und Studenten in der Hochschule | M50: 0 | N50: 0 | O50: =M50-N50 -> 0
A51: ---- | B51: Konferenz Sächsischer Studierendenschaft | M51: ='Detailblatt II'!I6 -> 2100 | N51: ='Detailblatt II'!J6 -> 0 | O51: =M51-N51 -> 2100
A52: ---- | B52: Interessenvertretungen der Studentinnen- und Studentenschaft | M52: ='Detailblatt II'!I13 -> 4400 | N52: ='Detailblatt II'!J13 -> 0 | O52: =M52-N52 -> 4400
A53: ---- | B53: weitere Interessenvertetungen | M53: 0 | N53: 0 | O53: =M53-N53 -> 0
A54: Zwischensumme: | M54: =SUM(M50:M53) -> 6500 | N54: =SUM(N50:N53) -> 0 | O54: =SUM(O50:O53) -> 6500
A55: Gesamtsumme: | J55: =SUM(J48,J43,J38,J23) -> 26100 | K55: =SUM(K48,K43,K38,K23) -> 28 | L55: =SUM(L48,L43,L38,L23) -> -26072 | M55: =SUM(M54,M48,M43,M38,M23) -> 259076 | N55: =SUM(N54,N48,N43,N38,N23) -> 813.19 | O55: =SUM(O54,O48,O43,O38,O23) -> 258262.81 | P55: =SUM(P23,P38,P48) -> 58520 | Q55: =SUM(Q48,Q38,Q23) -> 0 | R55: =SUM(R48,R38,R23) -> 58520 | S55: =SUM(S48,S38,S23) -> 69320

Sheet Detailblatt II
A1: Detailblatt II | B1: Jahr - | C1: ='Detailblatt I'!F1 -> 2022 | E1: Häufigkeit | F1: Einnahmen | I1: Ausgaben
F2: PLAN | G2: IST | H2: SALDO | I2: PLAN | J2: IST | K2: SALDO
A3: Konferenz Sächsischer Studierendenschaften - Konto: 4981
A4: Finanzvereinbarung | E4: 1 | F4: 0 | G4: 0 | H4: =G4-F4 -> 0 | I4: 1450 | J4: 0 | K4: =I4-J4 -> 1450
A5: Förderung der KSS (so auch Domain kss-sachsen.de) | E5: 1 | F5: 0 | G5: 0 | H5: =G5-F5 -> 0 | I5: =650 -> 650 | J5: 0 | K5: =I5-J5 -> 650
D6: Zwischensumme: | F6: =SUM(F4:F5) -> 0 | G6: =SUM(G4:G5) -> 0 | H6: =SUM(H4:H5) -> 0 | I6: 2100 | J6: 0 | K6: 2100
A7: Interessenvertretungen der Studentinnen- und Studentenschaften - Konto: 4982
A8: faranto e.V. | F8: 0 | G8: 0 | H8: =G8-F8 -> 0 | I8: 600 | J8: 0 | K8: =I8-J8 -> 600
A9: Erasmus Student Network | F9: 0 | G9: 0 | H9: =G9-F9 -> 0 | I9: 200 | J9: 0 | K9: =I9-J9 -> 200
A10: freier zusammenschluss von studentInnenschaften (fzs) e.V. | E10: 1 | F10: 0 | G10: 0 | H10: =G10-F10 -> 0 | I10: 3500 | J10: 0 | K10: =I10-J10 -> 3500
A11: BAS e.V. | E11: 1 | F11: 0 | G11: 0 | H11: =G11-F11 -> 0 | I11: 100 | J11: 0 | K11: =I11-J11 -> 100
A12: weitere (ABS, bpm ) | F12: 0 | G12: 0 | H12: =G12-F12 -> 0 | I12: 0 | J12: 0 | K12: =I12-J12 -> 0
D13: Zwischensumme: | F13: =SUM(F8:F12) -> 0 | G13: 0 | H13: 0 | I13: 4400 | J13: 0 | K13: 4400
A14: Beitragseinnahmen
A15: Anteilig WS 21/22 | B15: 17.5 | C15: x Studierende | D15: 4908 | E15: 1 | F15: =ROUND((($B$15*$D$15)/6)*2,-2) -> 28600 | G15: 28630 | H15: =G15-F15 -> 30 | I15: 0 | J15: 0 | K15: =I15-J15 -> 0
A16: SoSe 22 | B16: 23 | D16: 4400 | E16: 1 | F16: =ROUND($B$16*$D$16,-2) -> 101200 | G16: 101177 | H16: =G16-F16 -> -23 | I16: 0 | J16: 0 | K16: =I16-J16 -> 0
A17: Anteilig WS 22/23 | B17: 23 | D17: 4700 | E17: 1 | F17: =ROUND((($B$17*$D$17)/6)*4,-2) -> 72100 | G17: 0 | H17: =G17-F17 -> -72100 | I17: 0 | J17: 0 | K17: =I17-J17 -> 0
D18: Zwischensumme: | F18: =SUM(F15:F17) -> 201900 | G18: =SUM(G15:G17) -> 129807 | H18: =SUM(H15:H17) -> -72093 | I18: 0 | J18: 0 | K18: 0
A19: Vermögen
A20: Verfügbare finanzielle Mittel | F20: ='fortgeschr. Mittel+Konto'!D9 -> 117160.43 | H20: =G20-F20 -> -117160.43 | I20: 0 | J20: 0 | K20: =I20-J20 -> 0
A21: angeordnete Vermögensänderung lt. FO | F21: =Deckblatt!C7 -> 0 | H21: 0 | I21: =IF(F20<Mindestreserve!D18,Mindestreserve!D18-F20,0) -> 0 | K21: =I21-J21 -> 0
A22: Zinsen auf Vermögen | F22: 0 | G22: 0 | H22: 0 | I22: 0 | J22: 0 | K22: =I22-J22 -> 0
A23: geplante Veränderung des Vermögens Ansparen/Entnahme | F23: =Deckblatt!C6*(-1) -> 0 | G23: 0 | H23: 0 | I23: =Deckblatt!F6 -> 224 | J23: 0 | K23: =I23-J23 -> 224
D24: Zwischensumme: | F24: =SUM(F20:F23) -> 117160.43 | G24: 0 | H24: -117160.43 | I24: 224 | J24: 0 | K24: 224
A25: Gesamtsumme: | F25: =SUM(F18,F13,F6) -> 201900 | G25: 129807 | H25: -72093 | I25: 6500 | J25: 0 | K25: 6500

Sheet Konferenzen
A1: Konferenzen | B1: Häufigkeit | C1: Einnahmen | F1: Ausgaben | I1: nachrangig verwendbares Vj. Budget | J1: davon verwendet | K1: Zuführung "Fortgeschr. finanz. Mittel" | L1: Übertrag ins nächste HH-Jahr | M1: §5 Abs.4 S.2 FO
C2: PLAN | D2: IST | E2: SALDO | F2: PLAN | G2: IST | H2: SALDO
A3: O.S.T. (Bereich Bund/Land) / Hochschulpolitik | B3: 1 | C3: 0 | D3: 0 | E3: =D3-C3 -> 0 | F3: 500 | G3: 0 | H3: =F3-G3 -> 500 | I3: 500 | J3: =IF(H3<0,IF(I3>0,IF((H3*(-1))>I3,I3,H3*(-1)),0),0) -> 0 | K3: =IF(OR(J3>I3,H3+I3<0),makro1(),ROUNDDOWN(I3-J3,-1)) -> 500 | L3: =IF(H3>0,ROUNDDOWN(H3,-1),0) -> 500 | M3: =(D3-G3+J3)-(C3-F3) -> 500
A4: BuFaTa | B4: 0.5 | C4: 0 | D4: 0 | E4: =D4-C4 -> 0 | F4: 0 | G4: 0 | H4: =F4-G4 -> 0 | I4: 0 | J4: 0 | K4: =IF(OR(J4>I4,H4+I4<0),makro1(),ROUNDDOWN(I4-J4,-1)) -> 0 | L4: 0 | M4: =(D4-G4+J4)-(C4-F4) -> 0
A5: CoCo-Pauschale | B5: 1 | C5: 0 | D5: 0 | E5: =D5-C5 -> 0 | F5: 250 | G5: 0 | H5: =F5-G5 -> 250 | M5: 250
A6: Gesamtsumme: | C6: =SUM(C3:C5) -> 0 | D6: 0 | E6: 0 | F6: 750 | G6: 0 | H6: 750 | I6: 500 | J6: 0 | K6: 500 | L6: 500 | M6: 750

Sheet Personal
A1: Schulungen | B1: Häufigkeit | C1: Einnahmen | F1: Ausgaben | I1: nachrangig verwendbares Vj. Budget | J1: davon verwendet | K1: Zuführung "Fortgeschr. finanz. Mittel" | L1: Übertrag ins nächste HH-Jahr | M1: §5 Abs.4 S.2 FO
C2: PLAN | D2: IST | E2: SALDO | F2: PLAN | G2: IST | H2: SALDO
A3: Akkreditierung / Qualitätsmanagement | C3: 0 | D3: 0 | E3: =D3-C3 -> 0 | F3: 1000 | G3: 0 | H3: =F3-G3 -> 1000 | I3: 2500 | J3: =IF(H3<0,IF(I3>0,IF((H3*(-1))>I3,I3,H3*(-1)),0),0) -> 0 | K3: =IF(OR(J3>I3,H3+I3<0),makro1(),ROUNDDOWN(I3-J3,-1)) -> 2500 | L3: =IF(H3>0,ROUNDDOWN(H3,-1),0) -> 1000 | M3: =(D3-G3+J3)-(C3-F3) -> 1000
A4: Sozialberatung (BaföG, Jobberatung) / Soziales | C4: 0 | D4: 0 | E4: =D4-C4 -> 0 | F4: 50 | G4: 0 | H4: =F4-G4 -> 50 | I4: 50 | J4: =IF(H4<0,IF(I4>0,IF((H4*(-1))>I4,I4,H4*(-1)),0),0) -> 0 | K4: =IF(OR(J4>I4,H4+I4<0),makro1(),ROUNDDOWN(I4-J4,-1)) -> 50 | L4: =IF(H4>0,ROUNDDOWN(H4,-1),0) -> 50 | M4: =(D4-G4+J4)-(C4-F4) -> 50
A5: studentische und akademische Selbstverwaltung (Studienprüfungsordnung) / Studium | C5: 0 | D5: 0 | E5: 0 | F5: 100 | G5: 0 | H5: 100 | I5: 100 | J5: 0 | K5: =IF(OR(J5>I5,H5+I5<0),makro1(),ROUNDDOWN(I5-J5,-1)) -> 100 | L5: 100 | M5: 100
A6: Prüfungsangelegenheiten / Studium | C6: 0 | D6: 0 | E6: 0 | F6: 50 | G6: 0 | H6: 50 | I6: 50 | J6: 0 | K6: =IF(OR(J6>I6,H6+I6<0),makro1(),ROUNDDOWN(I6-J6,-1)) -> 50 | L6: 50 | M6: 50
A7: pol. Bildung, Antidiskriminierung, Gleichstellung / Hochschulpolitik | C7: 0 | D7: 0 | E7: 0 | F7: 100 | G7: 0 | H7: 100 | I7: 100 | J7: 0 | K7: =IF(OR(J7>I7,H7+I7<0),makro1(),ROUNDDOWN(I7-J7,-1)) -> 100 | L7: 100 | M7: 100
A8: Konstituierungsseminar (KoSe) / StuRa (Präsidium) | B8: 1 | C8: 0 | D8: 0 | E8: 0 | F8: 2500 | G8: 0 | H8: 2500 | I8: 160 | J8: 0 | K8: =IF(OR(J8>I8,H8+I8<0),makro1(),ROUNDDOWN(I8-J8,-1)) -> 160 | L8: 2500 | M8: 2500
A9: Lern- und Informationsseminar (LuISe) / Personal | B9: 1 | C9: 0 | D9: 0 | E9: 0 | F9: 500 | G9: 0 | H9: 500 | I9: 750 | J9: 0 | K9: =IF(OR(J9>I9,H9+I9<0),makro1(),ROUNDDOWN(I9-J9,-1)) -> 750 | L9: 500 | M9: 500
A10: Clearance and Rapprochement (CLARA) / StuRa (Kanzlei) | B10: 1 | C10: 0 | D10: 0 | E10: 0 | F10: 50 | G10: 0 | H10: 50 | I10: 0 | J10: 0 | K10: =IF(OR(J10>I10,H10+I10<0),makro1(),ROUNDDOWN(I10-J10,-1)) -> 0 | L10: 50 | M10: 50
A11: Veranstaltung zur fachlichen Weiterbildung / Studium | C11: 0 | D11: 0 | E11: =D11-C11 -> 0 | F11: 250 | G11: 0 | H11: =F11-G11 -> 250 | I11: 500 | J11: =IF(H11<0,IF(I11>0,IF((H11*(-1))>I11,I11,H11*(-1)),0),0) -> 0 | K11: =IF(OR(J11>I11,H11+I11<0),makro1(),ROUNDDOWN(I11-J11,-1)) -> 500 | L11: =IF(H11>0,ROUNDDOWN(H11,-1),0) -> 250 | M11: =(D11-G11+J11)-(C11-F11) -> 250
A12: Rekrutierungsgrillen / Personal | B12: 1 | C12: 0 | D12: 0 | E12: 0 | F12: 250 | G12: 0 | H12: 250 | I12: 0 | J12: 0 | K12: =IF(OR(J12>I12,H12+I12<0),makro1(),ROUNDDOWN(I12-J12,-1)) -> 0 | L12: 250 | M12: 250
A13: CoCo-Pauschale | C13: 0 | D13: 0 | E13: 0 | F13: 250 | G13: 0 | H13: 250
A14: Zwischensumme: | C14: =SUM(C3:C13) -> 0 | D14: 0 | E14: 0 | F14: 5100 | G14: 0 | H14: 5100 | I14: 4210 | J14: 0 | K14: 4210 | L14: 4850 | M14: =(D14-G14+J14)-(C14-F14) -> 5100
A16: Wahlen | B16: Häufigkeit | C16: Einnahmen | F16: Ausgaben | I16: nachrangig verwendbares Vj. Budget | J16: davon verwendet | K16: Zuführung "Fortgeschr. finanz. Mittel" | L16: Übertrag ins nächste HH-Jahr | M16: §5 Abs.4 S.2 FO
C17: PLAN | D17: IST | E17: SALDO | F17: PLAN | G17: IST | H17: SALDO
A18: Informationen zu Wahlen | C18: 0 | D18: 0 | E18: =D18-C18 -> 0 | F18: 100 | G18: 0 | H18: =F18-G18 -> 100 | I18: 100 | J18: =IF(H18<0,IF(I18>0,IF((H18*(-1))>I18,I18,H18*(-1)),0),0) -> 0 | K18: =IF(OR(J18>I18,H18+I18<0),makro1(),ROUNDDOWN(I18-J18,-1)) -> 100 | L18: =IF(H18>0,ROUNDDOWN(H18,-1),0) -> 100 | M18: =(D18-G18+J18)-(C18-F18) -> 100
A19: Zwischensumme: | C19: =C18 -> 0 | D19: 0 | E19: 0 | F19: 100 | G19: 0 | H19: 100 | I19: =SUM(I18) -> 100 | J19: =SUM(J18) -> 0 | K19: =SUM(K18) -> 100 | L19: =SUM(L18) -> 100 | M19: 100
A21: Gesamtsumme: | C21: =SUM(C14+C19) -> 0 | D21: =SUM(D14+D19) -> 0 | E21: 0 | F21: 5200 | G21: 0 | H21: 5200 | I21: =SUM(I14+I19) -> 4310 | J21: 0 | K21: 4310 | L21: 4950 | M21: =(D21-G21+J21)-(C21-F21) -> 5200

Sheet Finanzen
A1: Referat Finanzen | C1: Häufigkeit | D1: Einnahmen | G1: Ausgaben
D2: PLAN | E2: IST | F2: SALDO | G2: PLAN | H2: IST | I2: SALDO
A3: Kontoführung mit online-banking | B3: Sachkonto: 4970 | C3: 12 | D3: 0 | E3: 0 | F3: =E3-D3 -> 0 | G3: 500 | H3: 243.15 | I3: =G3-H3 -> 256.85
A4: Buchhaltungssoftware AGENDA | B4: Sachkonto: 4955 | C4: 12 | D4: 0 | E4: 0 | F4: =E4-D4 -> 0 | G4: 1000 | H4: 82.11 | I4: =G4-H4 -> 917.89
A5: CoCo-Pauschale | D5: 0 | E5: 0 | F5: =E5-D5 -> 0 | G5: 250 | H5: 0 | I5: =G5-H5 -> 250
A6: Gesamtsumme: | D6: =SUM(D3:D5) -> 0 | E6: 0 | F6: 0 | G6: 1750 | H6: 325.26 | I6: 1424.74

Sheet Hochschulpolitik
A1: Referat Hochschulpolitik | B1: Häufigkeit | C1: Einnahmen | F1: Ausgaben | I1: nachrangig verwendbares Vj. Budget | J1: davon verwendet | K1: Zuführung "Fortgeschr. finanz. Mittel" | L1: Übertrag ins nächste HH-Jahr | M1: §5 Abs.4 S.2 FO
C2: PLAN | D2: IST | E2: SALDO | F2: PLAN | G2: IST | H2: SALDO
A3: "festival contre le rasism" | B3: 1 | C3: 0 | D3: 0 | E3: =D3-C3 -> 0 | F3: 0 | G3: 0 | H3: =F3-G3 -> 0 | I3: 100 | J3: =IF(H3<0,IF(I3>0,IF((H3*(-1))>I3,I3,H3*(-1)),0),0) -> 0 | K3: =IF(OR(J3>I3,H3+I3<0),makro1(),ROUNDDOWN(I3-J3,-1)) -> 100 | L3: =IF(H3>0,ROUNDDOWN(H3,-1),0) -> 0 | M3: =(D3-G3+J3)-(C3-F3) -> 0
A4: Aktionstage gegen Sexismus und Homophobie | B4: 1 | C4: 0 | D4: 0 | E4: =D4-C4 -> 0 | F4: 100 | G4: 0 | H4: =F4-G4 -> 100 | I4: 100 | J4: 0 | K4: =IF(OR(J4>I4,H4+I4<0),makro1(),ROUNDDOWN(I4-J4,-1)) -> 100 | L4: =IF(H4>0,ROUNDDOWN(H4,-1),0) -> 100 | M4: =(D4-G4+J4)-(C4-F4) -> 100
A5: Aktionen, Festivals und Demonstrationen | C5: 0 | D5: 0 | E5: =D5-C5 -> 0 | F5: 100 | G5: 0 | H5: =F5-G5 -> 100 | I5: 100 | J5: 0 | K5: =IF(OR(J5>I5,H5+I5<0),makro1(),ROUNDDOWN(I5-J5,-1)) -> 100 | L5: 100 | M5: 100
A6: Förderverein HTW Dresden - Mitgliedsbeitrag | B6: 1 | C6: 0 | D6: 0 | E6: =D6-C6 -> 0 | F6: 150 | G6: 0 | H6: =F6-G6 -> 150 | I6: 0 | J6: 0 | K6: =IF(OR(J6>I6,H6+I6<0),makro1(),ROUNDDOWN(I6-J6,-1)) -> 0 | L6: 150 | M6: 150
A7: politische Bildung / Umweltbildung | C7: 0 | D7: 0 | E7: =D7-C7 -> 0 | F7: 100 | G7: 0 | H7: =F7-G7 -> 100 | I7: 400 | J7: 0 | K7: =IF(OR(J7>I7,H7+I7<0),makro1(),ROUNDDOWN(I7-J7,-1)) -> 400 | L7: 100 | M7: 100
A8: Gesamtsumme: | C8: =SUM(C3:C7) -> 0 | D8: 0 | E8: 0 | F8: 450 | G8: 0 | H8: 450 | I8: 700 | J8: 0 | K8: 700 | L8: 450 | M8: 450

Sheet Internationales
A1: Referat Internationales | B1: Häufigkeit | C1: Einnahmen | F1: Ausgaben | I1: nachrangig verwendbares Vj. Budget | J1: davon verwendet | K1: Zuführung "Fortgeschr. finanz. Mittel" | L1: Übertrag ins nächste HH-Jahr | M1: §5 Abs.4 S.2 FO
C2: PLAN | D2: IST | E2: SALDO | F2: PLAN | G2: IST | H2: SALDO
A3: DAAD Mitgliedsbeitrag | B3: 1 | C3: 0 | D3: 0 | E3: =D3-C3 -> 0 | F3: 50 | G3: 0 | H3: =F3-G3 -> 50 | I3: 0 | J3: =IF(H3<0,IF(I3>0,IF((H3*(-1))>I3,I3,H3*(-1)),0),0) -> 0 | K3: =IF(OR(J3>I3,H3+I3<0),makro1(),ROUNDDOWN(I3-J3,-1)) -> 0 | L3: =IF(H3>0,ROUNDDOWN(H3,-1),0) -> 50 | M3: =(D3-G3+J3)-(C3-F3) -> 50
A4: Internationaler Tag | B4: 1 | C4: 0 | D4: 0 | E4: =D4-C4 -> 0 | F4: 50 | G4: 0 | H4: =F4-G4 -> 50 | I4: 50 | J4: =IF(H4<0,IF(I4>0,IF((H4*(-1))>I4,I4,H4*(-1)),0),0) -> 0 | K4: =IF(OR(J4>I4,H4+I4<0),makro1(),ROUNDDOWN(I4-J4,-1)) -> 50 | L4: =IF(H4>0,ROUNDDOWN(H4,-1),0) -> 50 | M4: =(D4-G4+J4)-(C4-F4) -> 50
A5: CoCo-Pauschale | C5: 0 | D5: 0 | E5: =D5-C5 -> 0 | F5: 250 | G5: 0 | H5: =F5-G5 -> 250
A6: Gesamtsumme: | C6: =SUM(C3:C5) -> 0 | D6: 0 | E6: 0 | F6: 350 | G6: 0 | H6: 350 | I6: 50 | J6: 0 | K6: 50 | L6: 100 | M6: =(D6-G6+J6)-(C6-F6) -> 350

Sheet Kultur
A1: Referat Kultur | B1: Häufigkeit | C1: Einnahmen | F1: Ausgaben | I1: nachrangig verwendbares Vj. Budget | J1: davon verwendet | K1: Zuführung "Fortgeschr. finanz. Mittel" | L1: Übertrag ins nächste HH-Jahr | M1: §5 Abs.4 S.2 FO
C2: PLAN | D2: IST | E2: SALDO | F2: PLAN | G2: IST | H2: SALDO
A3: Semestereröffnungspartys (SEP) | B3: 2 | C3: 2000 | D3: 0 | E3: =D3-C3 -> -2000 | F3: 2000 | G3: 0 | H3: =F3-G3 -> 2000 | I3: 610 | J3: =IF(H3<0,IF(I3>0,IF((H3*(-1))>I3,I3,H3*(-1)),0),0) -> 0 | K3: =IF(OR(J3>I3,H3+I3<0),makro1(),ROUNDDOWN(I3-J3,-1)) -> 610 | L3: =IF(H3>0,ROUNDDOWN(H3,-1),0) -> 2000 | M3: =(D3-G3+J3)-(C3-F3) -> 0
A4: Kino in der Hochschule | C4: 800 | D4: 0 | E4: -800 | F4: 800 | G4: 0 | H4: 800 | I4: 200 | J4: 0 | K4: =IF(OR(J4>I4,H4+I4<0),makro1(),ROUNDDOWN(I4-J4,-1)) -> 200 | L4: =IF(H4>0,ROUNDDOWN(H4,-1),0) -> 800 | M4: =(D4-G4+J4)-(C4-F4) -> 0
A5: Musikveranstaltung | B5: 1 | C5: 500 | D5: 0 | E5: -500 | F5: 500 | G5: 0 | H5: 500 | I5: 450 | J5: 0 | K5: =IF(OR(J5>I5,H5+I5<0),makro1(),ROUNDDOWN(I5-J5,-1)) -> 450 | L5: 500 | M5: =(D5-G5+J5)-(C5-F5) -> 0
A6: Spieleabende | B6: 2 | C6: 0 | D6: 0 | E6: =D6-C6 -> 0 | F6: 100 | G6: 0 | H6: =F6-G6 -> 100 | I6: 100 | J6: =IF(H6<0,IF(I6>0,IF((H6*(-1))>I6,I6,H6*(-1)),0),0) -> 0 | K6: =IF(OR(J6>I6,H6+I6<0),makro1(),ROUNDDOWN(I6-J6,-1)) -> 100 | L6: 100 | M6: =(D6-G6+J6)-(C6-F6) -> 100
A7: Dies Academicus | B7: 1 | C7: 0 | D7: 0 | E7: 0 | F7: 300 | G7: 0 | H7: 300 | I7: 300 | J7: 0 | K7: =IF(OR(J7>I7,H7+I7<0),makro1(),ROUNDDOWN(I7-J7,-1)) -> 300 | L7: =IF(H7>0,ROUNDDOWN(H7,-1),0) -> 300 | M7: 300
A8: LAN-Partys | C8: 600 | D8: 0 | E8: -600 | F8: 600 | G8: 0 | H8: 600 | I8: 0 | J8: 0 | K8: =IF(OR(J8>I8,H8+I8<0),makro1(),ROUNDDOWN(I8-J8,-1)) -> 0 | L8: 600 | M8: 0
A9: Fakultätsfeste & Sommerfeste | C9: 4500 | D9: 0 | E9: =D9-C9 -> -4500 | F9: 5000 | G9: 0 | H9: =F9-G9 -> 5000 | I9: 2500 | J9: =IF(H9<0,IF(I9>0,IF((H9*(-1))>I9,I9,H9*(-1)),0),0) -> 0 | K9: =IF(OR(J9>I9,H9+I9<0),makro1(),ROUNDDOWN(I9-J9,-1)) -> 2500 | L9: =IF(H9>0,ROUNDDOWN(H9,-1),0) -> 5000 | M9: =(D9-G9+J9)-(C9-F9) -> 500
A10: Erstifahrten | C10: 3500 | D10: 0 | E10: =D10-C10 -> -3500 | F10: 4000 | G10: 0 | H10: =F10-G10 -> 4000 | I10: 0 | J10: =IF(H10<0,IF(I10>0,IF((H10*(-1))>I10,I10,H10*(-1)),0),0) -> 0 | K10: =IF(OR(J10>I10,H10+I10<0),makro1(),ROUNDDOWN(I10-J10,-1)) -> 0 | L10: =IF(H10>0,ROUNDDOWN(H10,-1),0) -> 4000 | M10: =(D10-G10+J10)-(C10-F10) -> 500
A11: Weihnachtsfeiern | C11: 3000 | D11: 0 | E11: =D11-C11 -> -3000 | F11: 3500 | G11: 0 | H11: =F11-G11 -> 3500 | I11: 3500 | J11: =IF(H11<0,IF(I11>0,IF((H11*(-1))>I11,I11,H11*(-1)),0),0) -> 0 | K11: =IF(OR(J11>I11,H11+I11<0),makro1(),ROUNDDOWN(I11-J11,-1)) -> 3500 | L11: =IF(H11>0,ROUNDDOWN(H11,-1),0) -> 3500 | M11: =(D11-G11+J11)-(C11-F11) -> 500
A12: CoCo-Pauschale | C12: 0 | D12: 0 | E12: =D12-C12 -> 0 | F12: 250 | G12: 0 | H12: =F12-G12 -> 250
A13: Vernetzung von Studierenden der Hochschule | C13: 2500 | D13: 0 | E13: -2500 | F13: 2500 | G13: 0 | H13: 2500 | I13: 2500 | J13: 0 | K13: =IF(OR(J13>I13,H13+I13<0),makro1(),ROUNDDOWN(I13-J13,-1)) -> 2500 | L13: 2500 | M13: 0
A14: Gesamtsumme: | C14: =SUM(C3:C13) -> 17400 | D14: 0 | E14: -17400 | F14: 19550 | G14: 0 | H14: 19550 | I14: =SUM(I3:I13) -> 10160 | J14: 0 | K14: 10160 | L14: 19300 | M14: =(D14-G14+J14)-(C14-F14) -> 2150

Sheet Öffentlichkeitsarbeit
A1: Referat Öffentlichkeitsarbeit | B1: Häufigkeit | C1: Einnahmen | F1: Ausgaben | I1: nachrangig verwendbares Vj. Budget | J1: davon verwendet | K1: Zuführung "Fortgeschr. finanz. Mittel" | L1: Übertrag ins nächste HH-Jahr | M1: §5 Abs.4 S.2 FO
C2: PLAN | D2: IST | E2: SALDO | F2: PLAN | G2: IST | H2: SALDO
A3: Druck Hochschul-ABC (Anteilig) | B3: 1 | C3: 0 | D3: 0 | E3: =D3-C3 -> 0 | F3: 0 | G3: 0 | H3: =F3-G3 -> 0 | I3: 400 | J3: =IF(H3<0,IF(I3>0,IF((H3*(-1))>I3,I3,H3*(-1)),0),0) -> 0 | K3: =IF(OR(J3>I3,H3+I3<0),makro1(),ROUNDDOWN(I3-J3,-1)) -> 400 | L3: =IF(H3>0,ROUNDDOWN(H3,-1),0) -> 0 | M3: =(D3-G3+J3)-(C3-F3) -> 0
A4: Hochschulveranstaltungen | B4: 2 | C4: 0 | D4: 0 | E4: 0 | F4: 200 | G4: 0 | H4: 200 | I4: 200 | J4: 0 | K4: =IF(OR(J4>I4,H4+I4<0),makro1(),ROUNDDOWN(I4-J4,-1)) -> 200 | L4: =IF(H4>0,ROUNDDOWN(H4,-1),0) -> 200 | M4: =(D4-G4+J4)-(C4-F4) -> 200
A5: Werbemittel (Kullis, Beutel, Plakate) | C5: 0 | D5: 0 | E5: 0 | F5: 4600 | G5: 0 | H5: 4600 | I5: 730 | J5: 0 | K5: =IF(OR(J5>I5,H5+I5<0),makro1(),ROUNDDOWN(I5-J5,-1)) -> 730 | L5: 4600 | M5: 4600
A6: Veranstaltung zur Vorstellung | B6: 1 | C6: 0 | D6: 0 | E6: 0 | F6: 250 | G6: 0 | H6: 250 | I6: 250 | J6: 0 | K6: =IF(OR(J6>I6,H6+I6<0),makro1(),ROUNDDOWN(I6-J6,-1)) -> 250 | L6: 250 | M6: 250
A7: CoCo-Pauschale | C7: 0 | D7: 0 | E7: 0 | F7: 250 | G7: 0 | H7: 250
A8: Merchandise u.ä. | C8: 500 | D8: 28 | E8: -472 | F8: 500 | G8: 0 | H8: 500 | I8: 1000 | J8: 0 | K8: =IF(OR(J8>I8,H8+I8<0),makro1(),ROUNDDOWN(I8-J8,-1)) -> 1000 | L8: 500 | M8: 28
A9: Gesamtsumme: | C9: =SUM(C3:C8) -> 500 | D9: 28 | E9: -472 | F9: 5800 | G9: 0 | H9: 5800 | I9: 2580 | J9: 0 | K9: 2580 | L9: 5550 | M9: 5328

Sheet Qualitätsmanagement
A1: Referat Qualitätsmanagement | B1: Häufigkeit | C1: Einnahmen | F1: Ausgaben | I1: nachrangig verwendbares Vj. Budget | J1: davon verwendet | K1: Zuführung "Fortgeschr. finanz. Mittel" | L1: Übertrag ins nächste HH-Jahr | M1: §5 Abs.4 S.2 FO
C2: PLAN | D2: IST | E2: SALDO | F2: PLAN | G2: IST | H2: SALDO
A3: Veranstaltung zu Erste Hilfe | B3: 2 | C3: 0 | D3: 0 | E3: =D3-C3 -> 0 | F3: 0 | G3: 0 | H3: =F3-G3 -> 0 | I3: 250 | J3: =IF(H3<0,IF(I3>0,IF((H3*(-1))>I3,I3,H3*(-1)),0),0) -> 0 | K3: =IF(OR(J3>I3,H3+I3<0),makro1(),ROUNDDOWN(I3-J3,-1)) -> 250 | L3: =IF(H3>0,ROUNDDOWN(H3,-1),0) -> 0 | M3: =(D3-G3+J3)-(C3-F3) -> 0
A4: Veranstaltung Erstsemestereinführung (ESE) | B4: 1 | C4: 0 | D4: 0 | E4: =D4-C4 -> 0 | F4: 500 | G4: 0 | H4: =F4-G4 -> 500 | I4: 480 | J4: =IF(H4<0,IF(I4>0,IF((H4*(-1))>I4,I4,H4*(-1)),0),0) -> 0 | K4: =IF(OR(J4>I4,H4+I4<0),makro1(),ROUNDDOWN(I4-J4,-1)) -> 480 | L4: =IF(H4>0,ROUNDDOWN(H4,-1),0) -> 500 | M4: =(D4-G4+J4)-(C4-F4) -> 500
A5: CoCo-Pauschale | C5: 0 | D5: 0 | E5: =D5-C5 -> 0 | F5: 250 | G5: 0 | H5: =F5-G5 -> 250
A6: Gesamtsumme: | C6: =SUM(C3:C5) -> 0 | D6: =SUM(D3:D5) -> 0 | E6: 0 | F6: 750 | G6: 0 | H6: 750 | I6: 730 | J6: 0 | K6: 730 | L6: 500 | M6: 500

Sheet Soziales
A1: Referat Soziales | B1: Häufigkeit | C1: Einnahmen | F1: Ausgaben | I1: nachrangig verwendbares Vj. Budget | J1: davon verwendet | K1: Zuführung "Fortgeschr. finanz. Mittel" | L1: Übertrag ins nächste HH-Jahr | M1: §5 Abs.4 S.2 FO
C2: PLAN | D2: IST | E2: SALDO | F2: PLAN | G2: IST | H2: SALDO
A3: Projekt "Studieren mit Kind" | C3: 0 | D3: 0 | E3: =D3-C3 -> 0 | F3: 100 | G3: 0 | H3: =F3-G3 -> 100 | I3: 200 | J3: =IF(H3<0,IF(I3>0,IF((H3*(-1))>I3,I3,H3*(-1)),0),0) -> 0 | K3: =IF(OR(J3>I3,H3+I3<0),makro1(),ROUNDDOWN(I3-J3,-1)) -> 200 | L3: =IF(H3>0,ROUNDDOWN(H3,-1),0) -> 100 | M3: =(D3-G3+J3)-(C3-F3) -> 100
A4: Projekt Studieren mit Beeinträchtigung | C4: 0 | D4: 0 | E4: =D4-C4 -> 0 | F4: 100 | G4: 0 | H4: =F4-G4 -> 100 | I4: 200 | J4: =IF(H4<0,IF(I4>0,IF((H4*(-1))>I4,I4,H4*(-1)),0),0) -> 0 | K4: =IF(OR(J4>I4,H4+I4<0),makro1(),ROUNDDOWN(I4-J4,-1)) -> 200 | L4: =IF(H4>0,ROUNDDOWN(H4,-1),0) -> 100 | M4: =(D4-G4+J4)-(C4-F4) -> 100
A5: Veranstaltungen zu sozialen Belangen | B5: 2 | C5: 0 | D5: 0 | E5: =D5-C5 -> 0 | F5: 150 | G5: 0 | H5: =F5-G5 -> 150 | I5: 150 | J5: 0 | K5: =IF(OR(J5>I5,H5+I5<0),makro1(),ROUNDDOWN(I5-J5,-1)) -> 150 | L5: =IF(H5>0,ROUNDDOWN(H5,-1),0) -> 150 | M5: =(D5-G5+J5)-(C5-F5) -> 150
A6: CoCo-Pauschale | C6: 0 | D6: 0 | E6: 0 | F6: 250 | G6: 0 | H6: 250
A7: Gesamtsumme: | C7: =SUM(C3:C6) -> 0 | D7: 0 | E7: 0 | F7: 600 | G7: 0 | H7: 600 | I7: 550 | J7: 0 | K7: 550 | L7: 350 | M7: 600

Sheet Sport
A1: Referat Sport | B1: Häufigkeit | C1: Einnahmen | F1: Ausgaben | I1: nachrangig verwendbares Vj. Budget | J1: davon verwendet | K1: Zuführung "Fortgeschr. finanz. Mittel" | L1: Übertrag ins nächste HH-Jahr | M1: §5 Abs.4 S.2 FO
C2: PLAN | D2: IST | E2: SALDO | F2: PLAN | G2: IST | H2: SALDO
A3: Turniere, Preise, Beiträge | C3: 0 | D3: 0 | E3: =D3-C3 -> 0 | F3: 500 | G3: 0 | H3: =F3-G3 -> 500 | I3: 500 | J3: =IF(H3<0,IF(I3>0,IF((H3*(-1))>I3,I3,H3*(-1)),0),0) -> 0 | K3: =IF(OR(J3>I3,H3+I3<0),makro1(),ROUNDDOWN(I3-J3,-1)) -> 500 | L3: =IF(H3>0,ROUNDDOWN(H3,-1),0) -> 500 | M3: =(D3-G3+J3)-(C3-F3) -> 500
A4: Startgebühren | B4: 1 | C4: 0 | D4: 0 | E4: 0 | F4: 200 | G4: 0 | H4: 200 | I4: 200 | J4: 0 | K4: =IF(OR(J4>I4,H4+I4<0),makro1(),ROUNDDOWN(I4-J4,-1)) -> 200 | L4: =IF(H4>0,ROUNDDOWN(H4,-1),0) -> 200 | M4: =(D4-G4+J4)-(C4-F4) -> 200
A5: Drachenbootrennen | B5: 1 | C5: 0 | D5: 0 | E5: 0 | F5: 0 | G5: 0 | H5: 0 | I5: 0 | J5: 0 | K5: =IF(OR(J5>I5,H5+I5<0),makro1(),ROUNDDOWN(I5-J5,-1)) -> 0 | L5: 0 | M5: 0
A6: sächsische Beachmeisterschaften | B6: 1 | C6: 0 | D6: 0 | E6: 0 | F6: 0 | G6: 0 | H6: 0 | I6: 0 | J6: 0 | K6: =IF(OR(J6>I6,H6+I6<0),makro1(),ROUNDDOWN(I6-J6,-1)) -> 0 | L6: 0 | M6: 0
A7: Gesundheitsmanagement | B7: 1 | C7: 0 | D7: 0 | E7: =D7-C7 -> 0 | F7: 500 | G7: 0 | H7: =F7-G7 -> 500 | I7: 0 | J7: =IF(H7<0,IF(I7>0,IF((H7*(-1))>I7,I7,H7*(-1)),0),0) -> 0 | K7: =IF(OR(J7>I7,H7+I7<0),makro1(),ROUNDDOWN(I7-J7,-1)) -> 0 | L7: 0 | M7: =(D7-G7+J7)-(C7-F7) -> 500
A8: Ausflüge | B8: 1 | C8: 200 | D8: 0 | E8: =D8-C8 -> -200 | F8: 300 | G8: 0 | H8: =F8-G8 -> 300 | I8: 0 | J8: =IF(H8<0,IF(I8>0,IF((H8*(-1))>I8,I8,H8*(-1)),0),0) -> 0 | K8: =IF(OR(J8>I8,H8+I8<0),makro1(),ROUNDDOWN(I8-J8,-1)) -> 0 | L8: 0 | M8: =(D8-G8+J8)-(C8-F8) -> 100
A9: Hochschulsportfest | B9: 1 | C9: 0 | D9: 0 | E9: 0 | F9: 0 | G9: 0 | H9: 0 | I9: 0 | J9: 0 | K9: =IF(OR(J9>I9,H9+I9<0),makro1(),ROUNDDOWN(I9-J9,-1)) -> 0 | L9: =IF(H9>0,ROUNDDOWN(H9,-1),0) -> 0 | M9: 0
A10: Sportevents (Eislaufen, Lasertag, Trampolinpark) | C10: 2000 | D10: 0 | E10: =D10-C10 -> -2000 | F10: 2500 | G10: 0 | H10: =F10-G10 -> 2500 | I10: 0 | J10: =IF(H10<0,IF(I10>0,IF((H10*(-1))>I10,I10,H10*(-1)),0),0) -> 0 | K10: =IF(OR(J10>I10,H10+I10<0),makro1(),ROUNDDOWN(I10-J10,-1)) -> 0 | L10: =IF(H10>0,ROUNDDOWN(H10,-1),0) -> 2500 | M10: =(D10-G10+J10)-(C10-F10) -> 500
A11: CoCo-Pauschale | C11: 0 | D11: 0 | E11: 0 | F11: 250 | G11: 0 | H11: 250
A12: Gesamtsumme: | C12: =SUM(C3:C11) -> 2200 | D12: 0 | E12: -2200 | F12: 4250 | G12: 0 | H12: 4250 | I12: =SUM(I3:I11) -> 700 | J12: =SUM(J3:J11) -> 0 | K12: =SUM(K3:K11) -> 700 | L12: =SUM(L3:L11) -> 3200 | M12: =(D12-G12+J12)-(C12-F12) -> 2050

Sheet Studium
A1: Referat Studium | B1: Häufigkeit | C1: Einnahmen | F1: Ausgaben | I1: nachrangig verwendbares Vj. Budget | J1: davon verwendet | K1: Zuführung "Fortgeschr. finanz. Mittel" | L1: Übertrag ins nächste HH-Jahr | M1: §5 Abs.4 S.2 FO
C2: PLAN | D2: IST | E2: SALDO | F2: PLAN | G2: IST | H2: SALDO
A3: Kompetenzorientiertes Prüfen | C3: 0 | D3: 0 | E3: =D3-C3 -> 0 | F3: 0 | G3: 0 | H3: =F3-G3 -> 0 | I3: 0 | J3: =IF(H3<0,IF(I3>0,IF((H3*(-1))>I3,I3,H3*(-1)),0),0) -> 0 | K3: =IF(OR(J3>I3,H3+I3<0),makro1(),ROUNDDOWN(I3-J3,-1)) -> 0 | L3: =IF(H3>0,ROUNDDOWN(H3,-1),0) -> 0 | M3: =(D3-G3+J3)-(C3-F3) -> 0
A4: Study Night o.ä. | B4: 1 | C4: 0 | D4: 0 | E4: =D4-C4 -> 0 | F4: 500 | G4: 0 | H4: =F4-G4 -> 500 | I4: 0 | J4: 0 | K4: =IF(OR(J4>I4,H4+I4<0),makro1(),ROUNDDOWN(I4-J4,-1)) -> 0 | L4: =IF(H4>0,ROUNDDOWN(H4,-1),0) -> 500 | M4: =(D4-G4+J4)-(C4-F4) -> 500
A5: Systemakkreditierung, was nun? | C5: 0 | D5: 0 | E5: =D5-C5 -> 0 | F5: 0 | G5: 0 | H5: =F5-G5 -> 0 | I5: 0 | J5: 0 | K5: =IF(OR(J5>I5,H5+I5<0),makro1(),ROUNDDOWN(I5-J5,-1)) -> 0 | L5: =IF(H5>0,ROUNDDOWN(H5,-1),0) -> 0 | M5: =(D5-G5+J5)-(C5-F5) -> 0
A6: Rechtskosten Prüfungsangelegenheiten | C6: 0 | D6: 0 | E6: =D6-C6 -> 0 | F6: 750 | G6: 0 | H6: =F6-G6 -> 750 | I6: 0 | J6: =IF(H6<0,IF(I6>0,IF((H6*(-1))>I6,I6,H6*(-1)),0),0) -> 0 | K6: =IF(OR(J6>I6,H6+I6<0),makro1(),ROUNDDOWN(I6-J6,-1)) -> 0 | L6: =IF(H6>0,ROUNDDOWN(H6,-1),0) -> 750 | M6: =(D6-G6+J6)-(C6-F6) -> 750
A7: CoCo-Pauschale | C7: 0 | D7: 0 | E7: =D7-C7 -> 0 | F7: 250 | G7: 0 | H7: =F7-G7 -> 250
A8: Gesamtsumme: | C8: =SUM(C3:C7) -> 0 | D8: 0 | E8: 0 | F8: 1500 | G8: 0 | H8: 1500 | I8: 0 | J8: 0 | K8: 0 | L8: 1250 | M8: 1500

Sheet Studentische Verwaltung
A1: Referat Verwaltung | B1: Häufigkeit | C1: Einnahmen | F1: Ausgaben | I1: nachrangig verwendbares Vj. Budget | J1: davon verwendet | K1: Zuführung "Fortgeschr. finanz. Mittel" | L1: Übertrag ins nächste HH-Jahr | M1: §5 Abs.4 S.2 FO
C2: PLAN | D2: IST | E2: SALDO | F2: PLAN | G2: IST | H2: SALDO
A3: Telefon | C3: 0 | D3: 0 | E3: =D3-C3 -> 0 | F3: 50 | G3: 0 | H3: =F3-G3 -> 50 | I3: 50 | J3: =IF(H3<0,IF(I3>0,IF((H3*(-1))>I3,I3,H3*(-1)),0),0) -> 0 | K3: =IF(OR(J3>I3,H3+I3<0),makro1(),ROUNDDOWN(I3-J3,-1)) -> 50 | L3: =IF(H3>0,ROUNDDOWN(H3,-1),0) -> 50 | M3: =(D3-G3+J3)-(C3-F3) -> 50
A4: Domains | C4: 0 | D4: 0 | E4: =D4-C4 -> 0 | F4: 50 | G4: 0 | H4: =F4-G4 -> 50 | I4: 0 | J4: 0 | K4: =IF(OR(J4>I4,H4+I4<0),makro1(),ROUNDDOWN(I4-J4,-1)) -> 0 | L4: =IF(H4>0,ROUNDDOWN(H4,-1),0) -> 50 | M4: =(D4-G4+J4)-(C4-F4) -> 50
A5: Beitrag Gruppenausweis für Jugendherbergen | B5: 1 | C5: 0 | D5: 0 | E5: 0 | F5: 26 | G5: 0 | H5: 26 | I5: 0 | J5: 0 | K5: =IF(OR(J5>I5,H5+I5<0),makro1(),ROUNDDOWN(I5-J5,-1)) -> 0 | L5: 20 | M5: 26
A6: Labeldrucker (für die ISIC-Ausweise) | B6: 1 | C6: 0 | D6: 0 | E6: 0 | F6: 0 | G6: 0 | H6: 0 | I6: 0 | J6: 0 | K6: =IF(OR(J6>I6,H6+I6<0),makro1(),ROUNDDOWN(I6-J6,-1)) -> 0 | L6: 0 | M6: 0
A7: Vertrieb ISIC | C7: 0 | D7: 0 | E7: 0 | F7: 0 | G7: 0 | H7: 0 | I7: 0 | J7: 0 | K7: =IF(OR(J7>I7,H7+I7<0),makro1(),ROUNDDOWN(I7-J7,-1)) -> 0 | L7: =IF(H7>0,ROUNDDOWN(H7,-1),0) -> 0 | M7: 0
A8: Dienste für elektronische Datenverarbeitung | C8: 0 | D8: 0 | E8: =D8-C8 -> 0 | F8: 5000 | G8: 0 | H8: =F8-G8 -> 5000 | I8: 15000 | J8: =IF(H8<0,IF(I8>0,IF((H8*(-1))>I8,I8,H8*(-1)),0),0) -> 0 | K8: =IF(OR(J8>I8,H8+I8<0),makro1(),ROUNDDOWN(I8-J8,-1)) -> 15000 | L8: =IF(H8>0,ROUNDDOWN(H8,-1),0) -> 5000 | M8: =(D8-G8+J8)-(C8-F8) -> 5000
A9: Anschaffungen zwecks Umstrukturierung StuRa | C9: 0 | D9: 0 | E9: 0 | F9: 1000 | G9: 0 | H9: 1000 | I9: 1000 | J9: 0 | K9: =IF(OR(J9>I9,H9+I9<0),makro1(),ROUNDDOWN(I9-J9,-1)) -> 1000 | L9: 1000 | M9: 1000
A10: andauernde Betreuung Server durch Externe | C10: 0 | D10: 0 | E10: =D10-C10 -> 0 | F10: 2400 | G10: 0 | H10: =F10-G10 -> 2400 | I10: 2400 | J10: =IF(H10<0,IF(I10>0,IF((H10*(-1))>I10,I10,H10*(-1)),0),0) -> 0 | K10: =IF(OR(J10>I10,H10+I10<0),makro1(),ROUNDDOWN(I10-J10,-1)) -> 2400 | L10: =IF(H10>0,ROUNDDOWN(H10,-1),0) -> 2400 | M10: =(D10-G10+J10)-(C10-F10) -> 2400
A11: Beiträge/Gebühren | C11: 0 | D11: 0 | E11: 0 | F11: 0 | G11: 0 | H11: 0 | I11: 0 | J11: 0 | K11: =IF(OR(J11>I11,H11+I11<0),makro1(),ROUNDDOWN(I11-J11,-1)) -> 0 | L11: 0 | M11: 0
A12: Büromaterial und -ausstattung | C12: 0 | D12: 0 | E12: 0 | F12: 500 | G12: 0 | H12: 500 | I12: 410 | J12: 0 | K12: =IF(OR(J12>I12,H12+I12<0),makro1(),ROUNDDOWN(I12-J12,-1)) -> 410 | L12: 500 | M12: 500
A13: Studienmaterial (z.B. Bautabellen, Laborkittel, etc.) | C13: 2500 | D13: 0 | E13: -2500 | F13: 2500 | G13: 0 | H13: 2500 | I13: 0 | J13: 0 | K13: =IF(OR(J13>I13,H13+I13<0),makro1(),ROUNDDOWN(I13-J13,-1)) -> 0 | L13: 2500 | M13: 0
A14: Getränkeautomat | C14: 1500 | D14: 0 | E14: =D14-C14 -> -1500 | F14: 1300 | G14: 0 | H14: =F14-G14 -> 1300 | I14: 0 | J14: =IF(H14<0,IF(I14>0,IF((H14*(-1))>I14,I14,H14*(-1)),0),0) -> 0 | K14: =IF(OR(J14>I14,H14+I14<0),makro1(),ROUNDDOWN(I14-J14,-1)) -> 0 | L14: =IF(H14>0,ROUNDDOWN(H14,-1),0) -> 1300 | M14: =(D14-G14+J14)-(C14-F14) -> -200
A15: Projekt "How to StuRa" (Dokumentation) | C15: 0 | D15: 0 | E15: 0 | F15: 2000 | G15: 0 | H15: 2000 | I15: 9000 | J15: =IF(H15<0,IF(I15>0,IF((H15*(-1))>I15,I15,H15*(-1)),0),0) -> 0 | K15: =IF(OR(J15>I15,H15+I15<0),makro1(),ROUNDDOWN(I15-J15,-1)) -> 9000 | L15: =IF(H15>0,ROUNDDOWN(H15,-1),0) -> 2000 | M15: =(D15-G15+J15)-(C15-F15) -> 2000
A16: laufende Kosten für Druck, samt Nebenkosten | C16: 0 | D16: 0 | E16: 0 | F16: 400 | G16: 0 | H16: 400 | I16: 290 | J16: 0 | K16: =IF(OR(J16>I16,H16+I16<0),makro1(),ROUNDDOWN(I16-J16,-1)) -> 290 | L16: 400 | M16: 400
A17: Gesamtsumme: | C17: =SUM(C3:C16) -> 4000 | D17: 0 | E17: -4000 | F17: 15226 | G17: 0 | H17: 15226 | I17: =SUM(I3:I16) -> 28150 | J17: =SUM(J3:J16) -> 0 | K17: =SUM(K3:K16) -> 28150 | L17: =SUM(L3:L16) -> 15220 | M17: 11226
